Workbook

Sheet Table 1
A1: 사업장 고지( 산 출) 내역서 - 건강보험
A2: 작성일차수 | E2: 2015/03/17-01 | J2: 고지년월 | N2: 2015년 03월 | R2: 통합납부자번호
A3: 사업장관리번호 | J3: 사업장명
A4: 전자납부번호 | J4: 고지차수 | N4: 1 | R4: 회계코드 | W4: 0
A5: 당월 분 산 출 내 역
A6: 구 | C6: 분 | J6: 건 강 보 험 료 | R6: 장 기 요 양 보 험 료
A7: ① | C7: 산출 보험 료 | J7: 1183180 | R7: 77390
A8: ② | C8: 정산 보험 료 | J8: 277440 | R8: 18170
A9: ③ 가입 자보 험료
A10: ( ① + ② ) 1,460,620 95,560
A11: ④ 사용 자보 험료 1,460,620 95,560
A12: ⑤ 선납 보험 료 0 0
A13: ⑥ 환급 금이 자 0 0
A14: ⑦고 지보 험료
A15: (③ +④ +⑤ +⑥ ) 2,921,240 191,120
A16: 납부 할보 험 료
A17: (건 강+ 장기 요양 ) 3,112,360
A18: 고지 인원 20 명
A19: 당월 분 고 지 내 역
A20: 고 지 월 2015년 03월분 납부기한 2015년 04월 10일 보험료(계) 건강 요양
A21: 3,112,360 2,921,240 191,120
A22: 납기 후 보험료 건강 요양
A23: 3,205,720 3,008,870 196,850
A24: 납기 후 기한 2015년 05월 10일
A25: 전월 납부 내 역 및 체 납내 역
A26: 고 지 월 2015년 02월분
A27: 구 분 | G27: 계 | N27: 건강 | T27: 요양
A28: 납부보험료 | L28: 2612040 | N28: 2451640 | Z28: 160400
A29: 체납 총 보험료 | L29: 0 | N29: 0 | Z29: 0
A30: 건강체납기간 | G30: 건강체납개월수 | N30: 요양체납기간 | T30: 요양체납개월수
G31: 개월 | T31: 개월
A32: 은행명 | D32: 기업 | I32: 국민 | O32: 우체국 | S32: NH농협
A33: 계좌번호
A34: 은행명 | D34: 신한 | I34: 우리 | O34: 대구 | S34: 하나
A35: 계좌번호
A36: 입금전용 계좌
A37: 개인별 보험료 고지(산출)내역서 - 건강보험
A38: 작 성 일 | H38: 2015년 03월 17일 | O38: 사업장관리번호 | AC38: 단위사업장기호 | AF38: 0
A39: 통 보 년 월 | H39: 2015년 03월 1차 | O39: 사 업 장 명
A40: 전자납부번호 | O40: 단위사업장명 | U40: NONE
A41: 성명 | B41: 증번호 | F41: 보수월액 | K41: 구 분 | M41: 산출보험료 | P41: 사 유 | Q41: 적용기간 | S41: 정산금액 | V41: 감 면 | X41: 연말정산 보 험 료 | AA41: 고지금액 | AD41: 환급금 이 자 | AE41: 고지+이자 합 계 | AG41: 총 계 (건강+요양) | AH41: 단위기관
B42: 주민등록번호 | AH42: 회계/직종
A43: 홍길동1 | F43: 1898620 | K43: 건강 | M43: 57620 | S43: 0 | X43: 0 | AA43: 57620 | AD43: 0 | AE43: 57620 | AG43: 61390 | AH43: 0
K44: 요양 | M44: 3770 | S44: 0 | X44: 0 | AA44: 3770 | AD44: 0 | AE44: 3770 | AH44: 0 | AI44: 0
A45: 홍길동2 | F45: 1254907 | K45: 건강 | M45: 38080 | S45: 0 | X45: 0 | AA45: 38080 | AD45: 0 | AE45: 38080 | AG45: 40570 | AH45: 0
K46: 요양 | M46: 2490 | S46: 0 | X46: 0 | AA46: 2490 | AD46: 0 | AE46: 2490 | AH46: 0 | AI46: 0
A47: 홍길동3 | F47: 1507810 | K47: 건강 | M47: 45760 | S47: 0 | X47: 0 | AA47: 45760 | AD47: 0 | AE47: 45760 | AG47: 48750 | AH47: 0
K48: 요양 | M48: 2990 | S48: 0 | X48: 0 | AA48: 2990 | AD48: 0 | AE48: 2990 | AH48: 0 | AI48: 0
A49: 홍길동4 | F49: 1492580 | K49: 건강 | M49: 45290 | S49: 0 | X49: 0 | AA49: 45290 | AD49: 0 | AE49: 45290 | AG49: 48250 | AH49: 0
K50: 요양 | M50: 2960 | S50: 0 | X50: 0 | AA50: 2960 | AD50: 0 | AE50: 2960 | AH50: 0 | AI50: 0
A51: 홍길동5 | F51: 0 | K51: 건강 | M51: 0 | S51: 190710 | X51: 0 | AA51: 190710 | AD51: 0 | AE51: 190710 | AG51: 203250 | AH51: 0
K52: 요양 | M52: 0 | P52: 퇴직정산 보험료 | S52: 12540 | X52: 0 | AA52: 12540 | AD52: 0 | AE52: 12540 | AH52: 0 | AI52: 0
A53: 홍길동6 | F53: 0 | K53: 건강 | M53: 0 | S53: 81510 | X53: 0 | AA53: 81510 | AD53: 0 | AE53: 81510 | AG53: 86780 | AH53: 0
K54: 요양 | M54: 0 | P54: 퇴직정산 보험료 | S54: 5270 | X54: 0 | AA54: 5270 | AD54: 0 | AE54: 5270 | AH54: 0 | AI54: 0
A55: 홍길동7 | F55: 4249914 | K55: 건강 | M55: 128980 | S55: 0 | X55: 0 | AA55: 128980 | AD55: 0 | AE55: 128980 | AG55: 137420 | AH55: 0
K56: 요양 | M56: 8440 | S56: 0 | X56: 0 | AA56: 8440 | AD56: 0 | AE56: 8440 | AH56: 0 | AI56: 0
A57: 홍길동8 | F57: 2531829 | K57: 건강 | M57: 76840 | S57: 0 | X57: 0 | AA57: 76840 | AD57: 0 | AE57: 76840 | AG57: 81870 | AH57: 0
K58: 요양 | M58: 5030 | S58: 0 | X58: 0 | AA58: 5030 | AD58: 0 | AE58: 5030 | AH58: 0 | AI58: 0
A59: 홍길동9 | F59: 2051016 | K59: 건강 | M59: 62240 | S59: 0 | X59: 0 | AA59: 62240 | AD59: 0 | AE59: 62240 | AG59: 66310 | AH59: 0
K60: 요양 | M60: 4070 | S60: 0 | X60: 0 | AA60: 4070 | AD60: 0 | AE60: 4070 | AH60: 0 | AI60: 0
A61: 홍길동10 | F61: 2800000 | K61: 건강 | M61: 84980 | S61: 0 | X61: 0 | AA61: 84980 | AD61: 0 | AE61: 84980 | AG61: 90540 | AH61: 0
K62: 요양 | M62: 5560 | S62: 0 | X62: 0 | AA62: 5560 | AD62: 0 | AE62: 5560 | AH62: 0 | AI62: 0
A63: 산출보험료: 575,100 정산(소급)금액: 290,030 연말정산: 0 고지금액: 865,130 환급금이자: 0 고지+이자 금액: 865,130 페이지 건강: 539,790 건강: 272,220 건강: 0 건강: 812,010 건강: 0 건강: 812,010 소 계 요양: 35,310 요양: 17,810 요양: 0 요양: 53,120 요양: 0 요양: 53,120
A64: 개인별 보험료 고지(산출)내역서 - 건강보험
A65: 작 성 일 | H65: 2015년 03월 17일 | O65: 사업장관리번호 | AC65: 단위사업장기호 | AF65: 0
A66: 통 보 년 월 | H66: 2015년 03월 1차 | O66: 사 업 장 명
A67: 전자납부번호 | O67: 단위사업장명 | U67: NONE
A68: 성명 | B68: 증번호 | F68: 보수월액 | K68: 구 분 | M68: 산출보험료 | P68: 사 유 | Q68: 적용기간 | S68: 정산금액 | V68: 감 면 | X68: 연말정산 보 험 료 | AA68: 고지금액 | AD68: 환급금 이 자 | AE68: 고지+이자 합 계 | AG68: 총 계 (건강+요양) | AH68: 단위기관
B69: 주민등록번호 | AH69: 회계/직종
A70: 홍길동11 | F70: 0 | K70: 건강 | M70: 0 | S70: 5140 | X70: 0 | AA70: 5140 | AD70: 0 | AE70: 5140 | AG70: 5480 | AH70: 0
K71: 요양 | M71: 0 | P71: 퇴직정산 보험료 | S71: 340 | X71: 0 | AA71: 340 | AD71: 0 | AE71: 340 | AH71: 0 | AI71: 0
A72: 홍길동12 | F72: 2500000 | K72: 건강 | M72: 75870 | S72: 0 | X72: 0 | AA72: 75870 | AD72: 0 | AE72: 75870 | AG72: 80830 | AH72: 0
K73: 요양 | M73: 4960 | S73: 0 | X73: 0 | AA73: 4960 | AD73: 0 | AE73: 4960 | AH73: 0 | AI73: 0
A74: 홍길동13 | F74: 2800000 | K74: 건강 | M74: 84980 | S74: 0 | X74: 0 | AA74: 84980 | AD74: 0 | AE74: 84980 | AG74: 90540 | AH74: 0
K75: 요양 | M75: 5560 | S75: 0 | X75: 0 | AA75: 5560 | AD75: 0 | AE75: 5560 | AH75: 0 | AI75: 0
A76: 홍길동14 | F76: 1900000 | K76: 건강 | M76: 57660 | S76: 0 | X76: 0 | AA76: 57660 | AD76: 0 | AE76: 57660 | AG76: 61430 | AH76: 0
K77: 요양 | M77: 3770 | S77: 0 | X77: 0 | AA77: 3770 | AD77: 0 | AE77: 3770 | AH77: 0 | AI77: 0
A78: 홍길동15 | F78: 3200000 | K78: 건강 | M78: 97120 | S78: 0 | X78: 0 | AA78: 97120 | AD78: 0 | AE78: 97120 | AG78: 103480 | AH78: 0
K79: 요양 | M79: 6360 | S79: 0 | X79: 0 | AA79: 6360 | AD79: 0 | AE79: 6360 | AH79: 0 | AI79: 0
A80: 홍길동16 | F80: 0 | K80: 건강 | M80: 0 | S80: 80 | X80: 0 | AA80: 80 | AD80: 0 | AE80: 80 | AG80: 100 | AH80: 0
K81: 요양 | M81: 0 | P81: 퇴직정산 보험료 | S81: 20 | X81: 0 | AA81: 20 | AD81: 0 | AE81: 20 | AH81: 0 | AI81: 0
A82: 홍길동17 | F82: 2500000 | K82: 건강 | M82: 75870 | S82: 0 | X82: 0 | AA82: 75870 | AD82: 0 | AE82: 75870 | AG82: 80830 | AH82: 0
K83: 요양 | M83: 4960 | S83: 0 | X83: 0 | AA83: 4960 | AD83: 0 | AE83: 4960 | AH83: 0 | AI83: 0
A84: 홍길동18 | F84: 2500000 | K84: 건강 | M84: 75870 | S84: 0 | X84: 0 | AA84: 75870 | AD84: 0 | AE84: 75870 | AG84: 80830 | AH84: 0
K85: 요양 | M85: 4960 | S85: 0 | X85: 0 | AA85: 4960 | AD85: 0 | AE85: 4960 | AH85: 0 | AI85: 0
A86: 홍길동19 | F86: 3300000 | K86: 건강 | M86: 100150 | S86: 0 | X86: 0 | AA86: 100150 | AD86: 0 | AE86: 100150 | AG86: 106700 | AH86: 0
K87: 요양 | M87: 6550 | S87: 0 | X87: 0 | AA87: 6550 | AD87: 0 | AE87: 6550 | AH87: 0 | AI87: 0
A88: 홍길동20 | F88: 2500000 | K88: 건강 | M88: 75870 | S88: 0 | X88: 0 | AA88: 75870 | AD88: 0 | AE88: 75870 | AG88: 80830 | AH88: 0
K89: 요양 | M89: 4960 | S89: 0 | X89: 0 | AA89: 4960 | AD89: 0 | AE89: 4960 | AH89: 0 | AI89: 0
A90: 산출보험료: 685,470 정산(소급)금액: 5,580 연말정산: 0 고지금액: 691,050 환급금이자: 0 고지+이자 금액: 691,050 페이지 건강: 643,390 건강: 5,220 건강: 0 건강: 648,610 건강: 0 건강: 648,610 소 계 요양: 42,080 요양: 360 요양: 0 요양: 42,440 요양: 0 요양: 42,440
A91: 개인별 보험료 고지(산출)내역서 - 건강보험
A92: 작 성 일 | H92: 2015년 03월 17일 | O92: 사업장관리번호 | AC92: 단위사업장기호 | AF92: 0
A93: 통 보 년 월 | H93: 2015년 03월 1차 | O93: 사 업 장 명
A94: 전자납부번호 | O94: 단위사업장명 | U94: NONE
A95: 성명 | B95: 증번호 | F95: 보수월액 | K95: 구 분 | M95: 산출보험료 | P95: 사 유 | Q95: 적용기간 | S95: 정산금액 | V95: 감 면 | X95: 연말정산 보 험 료 | AA95: 고지금액 | AD95: 환급금 이 자 | AE95: 고지+이자 합 계 | AG95: 총 계 (건강+요양) | AH95: 단위기관
B96: 주민등록번호 | AH96: 회계/직종
A97: 산출보험료: 1,260,570 정산(소급)금액: 295,610 연말정산: 0 고지금액: 1,556,180 환급금이자: 0 고지+이자 금액: 1,556,180 총 계 건강: 1,183,180 건강: 277,440 건강: 0 건강: 1,460,620 건강: 0 건강: 1,460,620 (누계) 요양: 77,390 요양: 18,170 요양: 0 요양: 95,560 요양: 0 요양: 95,560

Sheet Sheet1
B1: 건강 | C1: 요양
A2: 홍길동1 | B2: =SUMIFS('Table 1'!$AE:$AE,'Table 1'!$A:$A,Sheet1!$A2,'Table 1'!$K:$K,Sheet1!B$1) -> 57620 | C2: =SUMIFS('Table 1'!$AE:$AE,'Table 1'!$A:$A,Sheet1!$A2,'Table 1'!$K:$K,Sheet1!C$1) -> 0
A3: 홍길동2 | B3: =SUMIFS('Table 1'!$AE:$AE,'Table 1'!$A:$A,Sheet1!$A3,'Table 1'!$K:$K,Sheet1!B$1) -> 38080 | C3: =SUMIFS('Table 1'!$AE:$AE,'Table 1'!$A:$A,Sheet1!$A3,'Table 1'!$K:$K,Sheet1!C$1) -> 0
A4: 홍길동3 | B4: =SUMIFS('Table 1'!$AE:$AE,'Table 1'!$A:$A,Sheet1!$A4,'Table 1'!$K:$K,Sheet1!B$1) -> 45760 | C4: =SUMIFS('Table 1'!$AE:$AE,'Table 1'!$A:$A,Sheet1!$A4,'Table 1'!$K:$K,Sheet1!C$1) -> 0
A5: 홍길동4 | B5: =SUMIFS('Table 1'!$AE:$AE,'Table 1'!$A:$A,Sheet1!$A5,'Table 1'!$K:$K,Sheet1!B$1) -> 45290 | C5: =SUMIFS('Table 1'!$AE:$AE,'Table 1'!$A:$A,Sheet1!$A5,'Table 1'!$K:$K,Sheet1!C$1) -> 0
A6: 홍길동5 | B6: =SUMIFS('Table 1'!$AE:$AE,'Table 1'!$A:$A,Sheet1!$A6,'Table 1'!$K:$K,Sheet1!B$1) -> 190710 | C6: =SUMIFS('Table 1'!$AE:$AE,'Table 1'!$A:$A,Sheet1!$A6,'Table 1'!$K:$K,Sheet1!C$1) -> 0
A7: 홍길동6 | B7: =SUMIFS('Table 1'!$AE:$AE,'Table 1'!$A:$A,Sheet1!$A7,'Table 1'!$K:$K,Sheet1!B$1) -> 81510 | C7: =SUMIFS('Table 1'!$AE:$AE,'Table 1'!$A:$A,Sheet1!$A7,'Table 1'!$K:$K,Sheet1!C$1) -> 0
A8: 홍길동7 | B8: =SUMIFS('Table 1'!$AE:$AE,'Table 1'!$A:$A,Sheet1!$A8,'Table 1'!$K:$K,Sheet1!B$1) -> 128980 | C8: =SUMIFS('Table 1'!$AE:$AE,'Table 1'!$A:$A,Sheet1!$A8,'Table 1'!$K:$K,Sheet1!C$1) -> 0
A9: 홍길동8 | B9: =SUMIFS('Table 1'!$AE:$AE,'Table 1'!$A:$A,Sheet1!$A9,'Table 1'!$K:$K,Sheet1!B$1) -> 76840 | C9: =SUMIFS('Table 1'!$AE:$AE,'Table 1'!$A:$A,Sheet1!$A9,'Table 1'!$K:$K,Sheet1!C$1) -> 0
A10: 홍길동9 | B10: =SUMIFS('Table 1'!$AE:$AE,'Table 1'!$A:$A,Sheet1!$A10,'Table 1'!$K:$K,Sheet1!B$1) -> 62240 | C10: =SUMIFS('Table 1'!$AE:$AE,'Table 1'!$A:$A,Sheet1!$A10,'Table 1'!$K:$K,Sheet1!C$1) -> 0
A11: 홍길동10 | B11: =SUMIFS('Table 1'!$AE:$AE,'Table 1'!$A:$A,Sheet1!$A11,'Table 1'!$K:$K,Sheet1!B$1) -> 84980 | C11: =SUMIFS('Table 1'!$AE:$AE,'Table 1'!$A:$A,Sheet1!$A11,'Table 1'!$K:$K,Sheet1!C$1) -> 0
A12: 홍길동11 | B12: =SUMIFS('Table 1'!$AE:$AE,'Table 1'!$A:$A,Sheet1!$A12,'Table 1'!$K:$K,Sheet1!B$1) -> 5140 | C12: =SUMIFS('Table 1'!$AE:$AE,'Table 1'!$A:$A,Sheet1!$A12,'Table 1'!$K:$K,Sheet1!C$1) -> 0
A13: 홍길동12 | B13: =SUMIFS('Table 1'!$AE:$AE,'Table 1'!$A:$A,Sheet1!$A13,'Table 1'!$K:$K,Sheet1!B$1) -> 75870 | C13: =SUMIFS('Table 1'!$AE:$AE,'Table 1'!$A:$A,Sheet1!$A13,'Table 1'!$K:$K,Sheet1!C$1) -> 0
A14: 홍길동13 | B14: =SUMIFS('Table 1'!$AE:$AE,'Table 1'!$A:$A,Sheet1!$A14,'Table 1'!$K:$K,Sheet1!B$1) -> 84980 | C14: =SUMIFS('Table 1'!$AE:$AE,'Table 1'!$A:$A,Sheet1!$A14,'Table 1'!$K:$K,Sheet1!C$1) -> 0
A15: 홍길동14 | B15: =SUMIFS('Table 1'!$AE:$AE,'Table 1'!$A:$A,Sheet1!$A15,'Table 1'!$K:$K,Sheet1!B$1) -> 57660 | C15: =SUMIFS('Table 1'!$AE:$AE,'Table 1'!$A:$A,Sheet1!$A15,'Table 1'!$K:$K,Sheet1!C$1) -> 0
A16: 홍길동15 | B16: =SUMIFS('Table 1'!$AE:$AE,'Table 1'!$A:$A,Sheet1!$A16,'Table 1'!$K:$K,Sheet1!B$1) -> 97120 | C16: =SUMIFS('Table 1'!$AE:$AE,'Table 1'!$A:$A,Sheet1!$A16,'Table 1'!$K:$K,Sheet1!C$1) -> 0
A17: 홍길동16 | B17: =SUMIFS('Table 1'!$AE:$AE,'Table 1'!$A:$A,Sheet1!$A17,'Table 1'!$K:$K,Sheet1!B$1) -> 80 | C17: =SUMIFS('Table 1'!$AE:$AE,'Table 1'!$A:$A,Sheet1!$A17,'Table 1'!$K:$K,Sheet1!C$1) -> 0
A18: 홍길동17 | B18: =SUMIFS('Table 1'!$AE:$AE,'Table 1'!$A:$A,Sheet1!$A18,'Table 1'!$K:$K,Sheet1!B$1) -> 75870 | C18: =SUMIFS('Table 1'!$AE:$AE,'Table 1'!$A:$A,Sheet1!$A18,'Table 1'!$K:$K,Sheet1!C$1) -> 0
A19: 홍길동18 | B19: =SUMIFS('Table 1'!$AE:$AE,'Table 1'!$A:$A,Sheet1!$A19,'Table 1'!$K:$K,Sheet1!B$1) -> 75870 | C19: =SUMIFS('Table 1'!$AE:$AE,'Table 1'!$A:$A,Sheet1!$A19,'Table 1'!$K:$K,Sheet1!C$1) -> 0
A20: 홍길동19 | B20: =SUMIFS('Table 1'!$AE:$AE,'Table 1'!$A:$A,Sheet1!$A20,'Table 1'!$K:$K,Sheet1!B$1) -> 100150 | C20: =SUMIFS('Table 1'!$AE:$AE,'Table 1'!$A:$A,Sheet1!$A20,'Table 1'!$K:$K,Sheet1!C$1) -> 0
A21: 홍길동20 | B21: =SUMIFS('Table 1'!$AE:$AE,'Table 1'!$A:$A,Sheet1!$A21,'Table 1'!$K:$K,Sheet1!B$1) -> 75870 | C21: =SUMIFS('Table 1'!$AE:$AE,'Table 1'!$A:$A,Sheet1!$A21,'Table 1'!$K:$K,Sheet1!C$1) -> 0
